[Event "3rd Sunway Formentera-A 2024"]
[Site "Formentera"]
[Date "2024.04.11"]
[Round "3.12"]
[White "Raja Rithvik R"]
[Black "Song, Yuxin"]
[Result "1/2-1/2"]
[ECO "D35"]
[WhiteElo "2532"]
[BlackElo "2379"]
[Annotator "TA"]
[PlyCount "74"]
[EventDate "2024.04.03"]
[EventType "swiss"]
[EventCountry "ESP"]
[SourceTitle "playchess.com"]
[Source "ChessBase"]
[SourceQuality "1"]
[TimeControl "40/5400+30:1800+30"]

{[%evp 15,74,2,23,13,20,14,7,3,8,3,12,0,0,4,10,9,18,0,4,8,6,2,4,0,21,0,56,41,66,16,19,18,18,12,4,4,4,6,16,6,16,11,16,20,10,17,13,10,9,13,11,8,10,18,24,0,0,0,0,0,2]} 1. d4 {[%emt 0:04:26]} Nf6 {[%emt 0:00:06]} 2. c4 {[%emt 0:00:05]} e6 {[%emt 0:00:06]} 3. Nf3 {[%emt 0:00:10]} d5 {[%emt 0:00:07]} 4. cxd5 {[%emt 0:00:18]} exd5 {[%emt 0:00:07]} 5. Nc3 {[%emt 0:00:06]} c6 {[%emt 0:00:56]} 6. Bf4 {[%emt 0:00:50]} Bd6 {[%emt 0:05:31]} 7. Bxd6 {[%emt 0:00:13]} Qxd6 {[%emt 0:00:07]} 8. e3 {[%emt 0:00:02]} Bf5 {[%emt 0:06:34]} 9. Nh4 {[%emt 0:00:48]} Bg4 {[%emt 0:06:52]} 10. Qb3 {[%emt 0:00:29]} Qe7 {[%emt 0:02:09]} 11. h3 {[%emt 0:07:08]} Be6 {[%emt 0:05:43]} 12. Bd3 {[%emt 0:00:15]} Ne4 {[%emt 0:02:23]} 13. Nf3 {[%emt 0:00:06]} Nd6 {[%emt 0:06:49]} 14. Qc2 {[%emt 0:03:50][%cal Oe1g1]} Nd7 {[%emt 0:01:07]} 15. O-O {[%emt 0:09:49][%cal Oa1e1]} (15. Bxh7 $2 {is the wrong capture.} g6 16. Bxg6 fxg6 17. Qxg6+ Nf7 $19 (17... Bf7 18. Qg5 $17)) 15... Qf6 {[%emt 0:03:38][%cal Oe6h3]} 16. Nd2 {[%emt 0:02:57][%cal Of1e1]} (16. Bxh7 $2 {too greedy.} Qh6 (16... g6 $2 17. e4 $19) 17. Rfe1 (17. Bd3 $2 Bxh3 18. g3 g5 $19) 17... Qxh7 $19) 16... h6 {[%emt 0:09:13]} 17. b4 {[%emt 0:04:42]} O-O {[%emt 0:01:33]} 18. a4 {[%emt 0:02:36]} a5 {[%emt 0:06:47]} 19. Qb2 {[%emt 0:17:37]} b6 {[%emt 0:06:50]} 20. bxa5 {[%emt 0:04:21]} bxa5 {[%emt 0:01:10]} (20... Rxa5 $11 21. Qb4 Qe7) 21. Qa3 $14 {[%emt 0:00:57]} Bf5 {[%emt 0:01:00]} 22. Ne2 {[%emt 0:06:28]} (22. Bxf5 $14 Nxf5 23. Ne2) 22... Bxd3 $11 {[%emt 0:06:09]} 23. Qxd3 {[%emt 0:00:28]} Nb6 {[%emt 0:00:22]} 24. Qc3 {[%emt 0:05:43]} Nbc4 {[%emt 0:01:50]} 25. Nxc4 {[%emt 0:00:06]} Nxc4 {[%emt 0:00:05]} 26. Nf4 {[%emt 0:00:17]} Rfc8 {[%emt 0:00:56]} 27. Rfb1 {[%emt 0:01:21]} Rab8 {[%emt 0:04:19]} 28. Nd3 {[%emt 0:02:27]} Qg6 {[%emt 0:02:59]} 29. Rb3 {[%emt 0:03:05]} Rxb3 {[%emt 0:02:19]} 30. Qxb3 {[%emt 0:00:02]} Qd6 {[%emt 0:00:38]} 31. Rb1 {[%emt 0:02:10]} Nd2 {[%emt 0:01:37][%csl LRb1,LRb3]} 32. Qb7 {[%emt 0:00:04]} Rf8 {[%emt 0:00:04][%cal Od6g6] [#] ...Qg6! would now be deadly.} 33. Rd1 {[%emt 0:04:13][%cal Od3e5] Black must now prevent Ne5!} Rb8 {[%emt 0:03:02]} 34. Qa7 {[%emt 0:01:20]} Nc4 {[%emt 0:00:46] Prevents Ne5} 35. Qc5 {[%emt 0:01:50]} Qxc5 {[%emt 0:00:37] The position is equal.} 36. Nxc5 {[%emt 0:00:03]} Rb4 {[%emt 0:00:22]} 37. Rd3 {[%emt 0:01:05]} Kf8 {[%emt 0:02:20] Weighted Error Value: White=0.06 (flawless) /Black=0.07 (flawless) .  Mistake:       	White=1     	Black=1      OK:         	White=13    	Black=18     Best:        	White=1     	---} 1/2-1/2

[Event "3rd Sunway Formentera-A 2024"]
[Site "Formentera"]
[Date "2024.04.12"]
[Round "4.1"]
[White "Pranav, V."]
[Black "Donchenko, Alexander"]
[Result "1/2-1/2"]
[ECO "C85"]
[WhiteElo "2604"]
[BlackElo "2633"]
[Annotator "RC"]
[PlyCount "146"]
[EventDate "2024.04.03"]
[EventType "swiss"]
[EventCountry "ESP"]
[SourceTitle "playchess.com"]
[Source "ChessBase"]
[SourceQuality "1"]
[TimeControl "40/5400+30:1800+30"]

1. e4 {[%emt 0:00:04]} e5 {[%emt 0:00:06]} 2. Nf3 {[%emt 0:00:08]} Nc6 {[%emt 0:00:06]} 3. Bb5 {[%emt 0:00:27]} a6 {[%emt 0:00:08]} 4. Ba4 {[%emt 0:00:05]} Nf6 {[%emt 0:00:06]} 5. O-O {[%emt 0:01:09]} Be7 {[%emt 0:00:06]} 6. Bxc6 {[%emt 0:02:09]} dxc6 {[%emt 0:00:07]} 7. d3 {[%emt 0:00:08]} Bd6 {[%emt 0:05:19]} 8. Nbd2 {[%emt 0:04:57]} Be6 {[%emt 0:01:53]} 9. b3 {[%emt 0:02:06]} Nd7 {[%emt 0:05:08]} 10. Bb2 {[%emt 0:01:07]} Qe7 {[%emt 0:02:54]} 11. d4 {[%emt 0:06:14]} f6 {[%emt 0:13:07]} 12. Qe2 {[%emt 0:04:44]} O-O-O {[%emt 0:08:29]} 13. dxe5 {[%emt 0:10:15]} fxe5 {[%emt 0:00:27]} 14. a3 {[%emt 0:01:07]} g5 {[%emt 0:06:35]} 15. b4 {[%emt 0:05:42]} g4 {[%emt 0:02:19]} 16. Ne1 {[%emt 0:00:27]} Nb6 {[%emt 0:07:53]} 17. Nd3 {[%emt 0:06:10]} Qg5 {[%emt 0:08:42]} 18. f4 {[%emt 0:13:41]} exf4 {[%emt 0:00:58]} 19. Bxh8 {[%emt 0:00:44]} f3 {[%emt 0:00:42]} 20. Qf2 {[%emt 0:07:53]} Rxh8 {[%emt 0:03:41]} 21. e5 {[%emt 0:04:43]} fxg2 {[%emt 0:06:15]} 22. Rfe1 {[%emt 0:04:22]} Be7 {[%emt 0:00:36]} 23. Ne4 {[%emt 0:00:44]} Qh6 {[%emt 0:00:51]} 24. Qe3 {[%emt 0:04:39]} Qg7 {[%emt 0:01:29]} 25. Nf4 {[%emt 0:02:41]} Bf5 {[%emt 0:02:25]} 26. Rad1 {[%emt 0:01:49]} Bh4 {[%emt 0:08:19]} 27. Re2 {[%emt 0:00:49]} Qxe5 {[%emt 0:03:21]} 28. Nxg2 {[%emt 0:01:22]} Bd8 {[%emt 0:01:34]} 29. Rd4 {[%emt 0:06:26]} Nd5 {[%emt 0:02:48]} 30. Qf2 {[%emt 0:01:11]} Bg6 {[%emt 0:02:19]} 31. Nc5 {[%emt 0:03:26]} Qg5 {[%emt 0:02:38]} 32. c4 {[%emt 0:01:08]} Nc3 {[%emt 0:00:47]} 33. Re3 {[%emt 0:01:06]} Bf6 {[%emt 0:03:09]} 34. Ne6 {[%emt 0:01:14]} Qf5 {[%emt 0:01:30]} 35. Qxf5 {[%emt 0:00:07]} Bxf5 {[%emt 0:00:02]} 36. Rf4 {[%emt 0:00:06]} Nd1 {[%emt 0:00:55]} 37. Rxf5 {[%emt 0:00:24]} Nxe3 {[%emt 0:00:02]} 38. Nxe3 {[%emt 0:00:07]} Bb2 {[%emt 0:00:12]} 39. Nc2 {[%emt 0:00:12]} Re8 {[%emt 0:00:50]} 40. Rf8 {[%emt 0:00:00]} Rxf8 {[%emt 0:00:00]} 41. Nxf8 {[%emt 0:00:10]} h5 {[%emt 0:00:11]} 42. Ne6 {[%emt 0:00:09]} h4 {[%emt 0:02:20]} 43. Ned4 {[%emt 0:01:37]} Kd7 {[%emt 0:01:41]} 44. Nf5 {[%emt 0:02:53]} Ke6 {[%emt 0:05:28]} 45. Nfe3 {[%emt 0:10:42]} g3 {[%emt 0:02:26]} 46. hxg3 {[%emt 0:00:23]} hxg3 {[%emt 0:00:07]} 47. Kg2 {[%emt 0:00:08]} Ke5 {[%emt 0:10:46]} 48. Kf3 {[%emt 0:00:01]} b5 {[%emt 0:01:06]} 49. c5 {[%emt 0:05:15]} Bc1 {[%emt 0:00:57]} 50. Ke2 {[%emt 0:07:34]} Ke4 {[%emt 0:02:26]} 51. Nd1 {[%emt 0:00:27]} g2 {[%emt 0:06:18]} 52. Nc3+ {[%emt 0:00:03]} Ke5 {[%emt 0:00:52]} 53. Kf2 {[%emt 0:00:35]} Bd2 {[%emt 0:00:28]} 54. Nb1 {[%emt 0:02:12]} Bc1 {[%emt 0:00:02]} 55. Kxg2 {[%emt 0:00:59]} Ke4 {[%emt 0:00:03]} 56. Kf2 {[%emt 0:04:56]} Kd3 {[%emt 0:00:02]} 57. Ne1+ {[%emt 0:00:04]} Kc4 {[%emt 0:00:12]} 58. Ke2 {[%emt 0:00:24]} Bxa3 {[%emt 0:02:33]} 59. Nxa3+ {[%emt 0:01:02]} Kxb4 {[%emt 0:00:01]} 60. Nac2+ {[%emt 0:00:18]} Kxc5 {[%emt 0:01:03]} 61. Kd3 {[%emt 0:00:13]} a5 {[%emt 0:00:28]} 62. Nf3 {[%emt 0:01:47]} a4 {[%emt 0:02:12]} 63. Ne3 {[%emt 0:01:30]} Kb6 {[%emt 0:00:48]} 64. Ne5 {[%emt 0:00:19]} c5 {[%emt 0:00:17]} 65. Nd5+ {[%emt 0:00:28]} Kb7 {[%emt 0:00:14]} 66. Kc3 {[%emt 0:01:00]} c6 {[%emt 0:00:20]} 67. Ne3 {[%emt 0:00:40]} Kc7 {[%emt 0:00:21]} 68. Nf5 {[%emt 0:01:13]} c4 {[%emt 0:01:22]} 69. Nd4 {[%emt 0:00:58]} a3 {[%emt 0:00:31]} 70. Nexc6 {[%emt 0:00:52]} a2 {[%emt 0:00:13]} 71. Kb2 {[%emt 0:00:04]} c3+ {[%emt 0:00:45]} 72. Kxa2 {[%emt 0:00:04]} c2 {[%emt 0:00:04]} 73. Nxc2 {[%emt 0:00:15]} Kxc6 {[%emt 0:00:05]} 1/2-1/2

[Event "3rd Sunway Formentera-A 2024"]
[Site "Formentera"]
[Date "2024.04.12"]
[Round "4.2"]
[White "Ivanchuk, Vasyl"]
[Black "Fernandez Guillen, Ernesto J."]
[Result "1-0"]
[ECO "E17"]
[WhiteElo "2611"]
[BlackElo "2474"]
[Annotator "TA"]
[PlyCount "69"]
[EventDate "2024.04.03"]
[EventType "swiss"]
[EventCountry "ESP"]
[SourceTitle "playchess.com"]
[Source "ChessBase"]
[SourceQuality "1"]
[TimeControl "40/5400+30:1800+30"]

{[%evp 18,69,16,31,39,26,25,12,59,47,90,83,89,104,93,103,102,101,119,116,109,100,96,98,87,102,94,88,85,96,77,66,100,116,118,121,158,158,163,162,164,153,153,152,200,202,612,612,597,597,580,529,525,514]} 1. d4 {[%emt 1:31:00]} Nf6 {[%emt 0:08:52]} 2. c4 {[%emt 0:00:00]} e6 {[%emt 0:00:04]} 3. Nf3 {[%emt 0:00:00]} b6 {[%emt 0:00:03]} 4. g3 {[%emt 0:00:00]} Bb7 {[%emt 0:00:05]} 5. Bg2 {[%emt 0:00:00]} d5 {[%emt 0:00:02]} 6. cxd5 {[%emt 0:00:00]} exd5 {[%emt 0:04:01]} 7. Nc3 {[%emt 0:00:00]} Be7 {[%emt 0:00:23]} 8. Qa4+ {[%emt 0:00:00]} c6 {[%emt 0:04:36]} 9. Ne5 {[%emt 0:00:00]} O-O {[%emt 0:00:06]} 10. O-O {[%emt 0:00:00]} b5 {[%emt 0:07:00]} 11. Qc2 {[%emt 0:00:00]} Nbd7 {[%emt 0:02:58]} 12. Nd3 {[%emt 0:00:00]} b4 {[%emt 0:04:31]} (12... Re8 $11 {is superior.}) 13. Na4 $14 {[%emt 0:00:00]} Qa5 {[%emt 0:03:14]} 14. a3 {[%emt 0:00:00]} Ba6 {[%emt 0:05:03]} 15. axb4 {[%emt 0:00:00]} (15. Qxc6 $2 Bxd3 16. axb4 (16. exd3 $2 Rac8 $19) 16... Bxb4 $19) 15... Bxd3 {[%emt 0:03:26]} 16. Qxd3 {[%emt 0:00:00]} Bxb4 {[%emt 0:01:19]} 17. Bf4 {[%emt 0:00:00]} Qb5 {[%emt 0:02:35]} 18. Rfc1 {[%emt 0:00:00]} a6 {[%emt 0:03:19]} 19. Qc2 {[%emt 0:00:00] White is more active.} Rfc8 {[%emt 0:06:57]} 20. Bh3 {[%emt 0:00:00]} c5 {[%emt 0:03:48]} 21. dxc5 {[%emt 0:00:00]} Bxc5 {[%emt 0:02:56]} 22. Nxc5 {[%emt 0:00:00]} Rxc5 {[%emt 0:00:32]} 23. Qd2 {[%emt 0:00:00]} Rxc1+ {[%emt 0:07:12]} 24. Rxc1 {[%emt 0:00:00]} Nc5 {[%emt 0:01:57] [#] ...Nb3 would now be deadly.} 25. Qe3 {[%emt 0:00:00]} Nb3 {[%emt 0:08:00]} 26. Rc3 {[%emt 0:01:55]} d4 {[%emt 0:06:45]} 27. Qf3 {[%emt 0:00:03]} (27. Rxb3 $2 dxe3 28. Rxb5 exf2+ (28... axb5 $2 29. Bxe3 Ra4 30. Bd2 $19) 29. Kxf2 axb5 $19) 27... dxc3 {[%emt 0:05:57]} 28. Qxa8+ {[%emt 0:00:03]} Qe8 {[%emt 0:00:04]} 29. Qxe8+ {[%emt 0:01:27]} ({Not} 29. Qxa6 cxb2 30. Qa2 Nc1 (30... Qxe2 31. Bf1 $16) 31. Qxb2 Nxe2+ (31... Qxe2 $2 {too greedy.} 32. Qb8+ Ne8 33. Bxc1 $18) 32. Kf1 Nxf4 33. gxf4 Nh5 $11) 29... Nxe8 {[%emt 0:00:11]} 30. bxc3 $18 {[%emt 0:00:02] KBB-KNN} a5 {[%emt 0:00:41]} (30... Kf8 $16 {was called for.} 31. Bg2 Ke7) 31. Bd7 {[%emt 0:02:05]} Kf8 {[%emt 0:02:11] [#]} (31... Nf6 32. Bc6 Nc5) 32. Be3 {[%emt 0:01:10] White is clearly winning.} Nd6 {[%emt 0:01:09]} 33. Ba4 {[%emt 0:00:06]} Na1 {[%emt 0:00:04]} 34. Bc5 {[%emt 0:01:28]} Ke7 {[%emt 0:00:06]} 35. Ba3 {[%emt 0:00:12] Weighted Error Value: White=0.04 (flawless) /Black=0.24 (precise) .  Mistake:       	---       	Black=3      Inaccurate:     	---       	Black=3      OK:         	White=10    	Black=7      Best:        	White=2     	Black=1} 1-0

[Event "3rd Sunway Formentera-A 2024"]
[Site "Formentera"]
[Date "2024.04.12"]
[Round "4.3"]
[White "Baklan, Vladimir"]
[Black "Moussard, Jules"]
[Result "0-1"]
[ECO "B51"]
[WhiteElo "2531"]
[BlackElo "2610"]
[Annotator "TA"]
[PlyCount "72"]
[EventDate "2024.04.03"]
[EventType "swiss"]
[EventCountry "ESP"]
[SourceTitle "playchess.com"]
[Source "ChessBase"]
[SourceQuality "1"]
[TimeControl "40/5400+30:1800+30"]

{[%evp 9,72,18,17,3,10,12,28,27,16,13,25,11,38,5,8,15,14,10,12,16,18,7,23,0,2,13,8,4,22,0,16,0,0,0,11,0,12,0,12,0,8,0,0,-12,-17,-13,-4,-10,-14,-6,-13,-48,-54,-115,-112,-110,-109,-117,-204,-255,-260,-332,-356,-750,-744]} 1. e4 {[%emt 0:00:03]} c5 {[%emt 0:00:03]} 2. Nf3 {[%emt 0:00:04]} d6 {[%emt 0:00:05]} 3. Bb5+ {[%emt 0:00:04]} Nd7 {[%emt 0:01:08]} 4. O-O {[%emt 0:00:09]} a6 {[%emt 0:00:11]} 5. Bd3 {[%emt 0:00:05]} Ngf6 {[%emt 0:01:14]} 6. Re1 {[%emt 0:00:37]} e6 {[%emt 0:00:39]} 7. c3 {[%emt 0:00:06]} Be7 {[%emt 0:01:34]} 8. Bc2 {[%emt 0:01:06] White has an edge.} b5 {[%emt 0:00:08]} 9. d4 {[%emt 0:00:05]} Bb7 {[%emt 0:00:28]} 10. Nbd2 {[%emt 0:03:48][%cal Bb1d2,Bd2f1,Bf1g3][%mdl 32]} Qc7 {[%emt 0:01:20]} 11. Nf1 {[%emt 0:03:38]} O-O {[%emt 0:01:45]} 12. Ng3 {[%emt 0:01:17]} Rfc8 {[%emt 0:03:17]} 13. Bd3 {[%emt 0:01:36]} cxd4 {[%emt 0:04:11]} 14. cxd4 {[%emt 0:01:24]} b4 {[%emt 0:01:18]} 15. Bg5 {[%emt 0:11:16]} h6 {[%emt 0:03:34]} 16. Bf4 {[%emt 0:04:34]} Bf8 {[%emt 0:03:47]} 17. Be3 {[%emt 0:06:57]} a5 {[%emt 0:02:55]} 18. Qe2 {[%emt 0:03:47]} a4 {[%emt 0:08:02]} 19. Nd2 {[%emt 0:06:56]} Qa5 {[%emt 0:07:31]} 20. Nc4 {[%emt 0:07:28]} Qd8 {[%emt 0:01:21]} 21. Nd2 {[%emt 0:00:06]} Rc7 {[%emt 0:01:52]} 22. Rac1 {[%emt 0:06:21]} Rac8 {[%emt 0:03:17]} 23. Rxc7 {[%emt 0:00:06]} Rxc7 {[%emt 0:00:22]} 24. f3 {[%emt 0:04:43]} Qc8 {[%emt 0:00:45]} 25. Qf1 {[%emt 0:01:20]} a3 {[%emt 0:12:56]} 26. bxa3 {[%emt 0:01:34]} bxa3 {[%emt 0:00:07]} 27. Nb3 {[%emt 0:00:18]} Nb6 {[%emt 0:02:33]} 28. Rc1 {[%emt 0:08:56]} d5 {[%emt 0:04:49]} 29. Rxc7 {[%emt 0:09:21]} Qxc7 {[%emt 0:00:21]} 30. Nc5 {[%emt 0:00:04]} dxe4 {[%emt 0:07:25]} 31. fxe4 {[%emt 0:00:27]} (31. Ngxe4 $15 Bxe4 32. fxe4) 31... Bxc5 $17 {[%emt 0:02:17]} 32. dxc5 {[%emt 0:00:04]} Nbd7 {[%emt 0:00:16][%cal Bb6d7,Bd7c5,Bc5e4][%mdl 32]} 33. Qc1 {[%emt 0:06:47]} Ng4 {[%emt 0:01:11] Black is more active.} 34. Bd2 {[%emt 0:00:06]} Nxc5 {[%emt 0:04:37] A dynamic duo of knights.} ({Much less strong is} 34... Qxc5+ 35. Qxc5 Nxc5 36. Bc2 $19) 35. Be2 {[%emt 0:00:07] [#] And now Bb4 would win.} Qd6 {[%emt 0:01:44]} 36. Qc3 {[%emt 0:02:52] Dodges Nb3} (36. Be1 Qd4+ 37. Kh1 Nf2+ 38. Bxf2 Qxf2 39. Qg1 Qxg1+ (39... Nxe4 $2 40. Qxf2 Nxf2+ 41. Kg1 $19) 40. Kxg1) 36... Nxe4 {[%emt 0:00:27] Weighted Error Value: White=0.38/Black=0.03 (flawless) .  Mistake:       	White=2     	---        Inaccurate:     	White=2     	---        OK:         	White=12    	Black=16     Best:        	---       	Black=1} 0-1

[Event "3rd Sunway Formentera-A 2024"]
[Site "Formentera"]
[Date "2024.04.12"]
[Round "4.4"]
[White "Balakrishnan, Praveen"]
[Black "Dragnev, Valentin"]
[Result "1/2-1/2"]
[ECO "C75"]
[WhiteElo "2500"]
[BlackElo "2571"]
[Annotator "TA"]
[PlyCount "81"]
[EventDate "2024.04.03"]
[EventType "swiss"]
[EventCountry "ESP"]
[SourceTitle "playchess.com"]
[Source "ChessBase"]
[SourceQuality "1"]
[TimeControl "40/5400+30:1800+30"]

{[%evp 12,81,39,22,27,23,25,29,29,0,0,0,0,0,0,0,0,0,0,0,-13,-47,0,-2,-14,-22,0,0,0,0,23,16,12,13,9,0,0,0,0,0,99,94,105,0,0,0,0,0,0,0,0,0,37,8,68,66,70,35,64,4,2,0,0,0,0,0,0,0,0,0,0,0]} 1. e4 {[%emt 0:08:43]} e5 {[%emt 0:00:10]} 2. Nf3 {[%emt 0:00:17]} Nc6 {[%emt 0:00:07]} 3. Bb5 {[%emt 0:00:06]} a6 {[%emt 0:00:07]} 4. Ba4 {[%emt 0:00:06]} d6 {[%emt 0:01:12]} 5. c3 {[%emt 0:04:28]} Nf6 {[%emt 0:00:21]} 6. d4 {[%emt 0:03:13]} Bd7 {[%emt 0:03:22]} 7. Nbd2 {[%emt 0:02:42]} g6 {[%emt 0:15:55]} 8. O-O {[%emt 0:06:03]} Bg7 {[%emt 0:00:36]} 9. Re1 {[%emt 0:08:20]} O-O {[%emt 0:00:50] White has an edge.} 10. Bc2 {[%emt 0:03:22]} exd4 {[%emt 0:08:55]} 11. cxd4 {[%emt 0:01:29][%cal Bc3d4,Bd4d5][%mdl 32]} Nh5 {[%emt 0:01:09]} 12. d5 {[%emt 0:14:06]} Nb4 {[%emt 0:08:13]} 13. Bb1 {[%emt 0:01:02] [#] a3 is the strong threat.} a5 $1 {[%emt 0:00:06]} 14. a3 {[%emt 0:08:58]} Na6 {[%emt 0:00:10]} 15. Bc2 {[%emt 0:01:04]} Re8 {[%emt 0:02:38]} 16. Nb3 {[%emt 0:07:33][%cal Bd2b3,Bb3d4,Bd4f3,Bf3e5][%mdl 32]} a4 {[%emt 0:03:01]} 17. Nbd4 {[%emt 0:01:10]} Nc5 {[%emt 0:00:18]} 18. Bg5 {[%emt 0:02:42]} Qb8 {[%emt 0:04:46]} 19. Qd2 {[%emt 0:04:43]} Bg4 {[%emt 0:20:22]} 20. Rab1 {[%emt 0:02:25]} Ra6 {[%emt 0:03:29]} 21. h3 {[%emt 0:02:22]} Bxf3 {[%emt 0:01:49]} 22. Nxf3 {[%emt 0:00:09]} Nf6 {[%emt 0:00:16]} 23. e5 {[%emt 0:06:55]} dxe5 {[%emt 0:00:13]} 24. Nxe5 {[%emt 0:00:45]} ({Much worse is} 24. Rxe5 Rxe5 25. Nxe5 Nfe4 $17) 24... Rd6 {[%emt 0:06:19]} 25. Qf4 {[%emt 0:00:59]} Rf8 {[%emt 0:00:17]} (25... b5 $11 {keeps the balance.}) 26. Qc4 $16 {[%emt 0:02:12] [#] Hoping for Bxf6. White is much more active.} (26. Bxa4 $2 {too greedy.} Nxd5 27. Qc4 Nxa4 28. Qxa4 f6 29. Nxg6 (29. Nd7 $2 Qa8 $19) 29... hxg6 $19) 26... b6 {[%emt 0:05:00]} 27. Bxf6 {[%emt 0:03:38]} (27. Nc6 $16 Qa8 28. Ne7+ Kh8 29. Rbd1) 27... Bxf6 $11 {[%emt 0:00:45]} 28. Bxa4 {[%emt 0:00:15]} Nxa4 {[%emt 0:04:01]} 29. Qxa4 {[%emt 0:00:08]} Qa8 {[%emt 0:00:02] Prevents Nc6.} 30. Qxa8 {[%emt 0:01:32]} Rxa8 {[%emt 0:00:25]} 31. Ng4 {[%emt 0:01:00]} Rad8 {[%emt 0:02:59]} 32. Rbc1 {[%emt 0:02:31]} R8d7 {[%emt 0:00:45]} (32... Bxb2 $11 33. Rxc7 Rxd5) 33. Nxf6+ $14 {[%emt 0:00:38]} Rxf6 {[%emt 0:00:02][%mdl 4096] Endgame. KRR-KRR} 34. Re2 {[%emt 0:00:50]} Rf5 {[%emt 0:04:42]} 35. Rec2 {[%emt 0:00:13]} (35. d6 $14 cxd6 36. Rc6) 35... Rdxd5 $11 {[%emt 0:01:32] The position is equal.} 36. Rxc7 {[%emt 0:01:09]} Rd2 {[%emt 0:00:06][%csl LRb2,LRf2]} 37. R1c2 {[%emt 0:00:31]} Rfxf2 {[%emt 0:00:11]} 38. Rxd2 {[%emt 0:00:06]} Rxd2 {[%emt 0:00:05]} 39. b4 {[%emt 0:00:38]} Ra2 {[%emt 0:01:45]} 40. Rb7 {[%emt 0:00:00]} Rxa3 {[%emt 0:00:00]} 41. Rxb6 {[%emt 0:00:22] Weighted Error Value: White=0.13 (very precise) /Black=0.13 (very precise) .  Mistake:       	White=2     	Black=2      Inaccurate:     	White=4     	Black=3      OK:         	White=17    	Black=15     Best:        	White=1     	Black=3      Strong:       	---       	Black=1} 1/2-1/2

[Event "3rd Sunway Formentera-A 2024"]
[Site "Formentera"]
[Date "2024.04.12"]
[Round "4.5"]
[White "Xiao, Tong(Qd)"]
[Black "Raja Rithvik R"]
[Result "1/2-1/2"]
[ECO "B92"]
[WhiteElo "2484"]
[BlackElo "2532"]
[Annotator "TA"]
[PlyCount "85"]
[EventDate "2024.04.03"]
[EventType "swiss"]
[EventCountry "ESP"]
[SourceTitle "playchess.com"]
[Source "ChessBase"]
[SourceQuality "1"]
[TimeControl "40/5400+30:1800+30"]

{[%evp 27,85,0,20,34,21,0,22,0,0,-18,-9,-27,-8,-34,-37,-35,0,0,-6,-20,0,0,-12,0,21,21,19,13,14,0,14,22,20,-20,-35,-46,-41,-35,-22,-18,16,-68,-61,-57,-37,-125,-110,-110,-110,-385,0,0,0,0,0,0,0,0,0,0]} 1. e4 {[%emt 0:00:02]} c5 {[%emt 0:00:20]} 2. Nf3 {[%emt 0:00:07]} d6 {[%emt 0:00:05]} 3. d4 {[%emt 0:00:07]} cxd4 {[%emt 0:00:04]} 4. Nxd4 {[%emt 0:00:03]} Nf6 {[%emt 0:00:05]} 5. Nc3 {[%emt 0:00:05]} a6 {[%emt 0:00:03]} 6. Be2 {[%emt 0:00:16]} e5 {[%emt 0:00:08]} 7. Nb3 {[%emt 0:00:06]} Be7 {[%emt 0:00:10]} 8. O-O {[%emt 0:00:07]} O-O {[%emt 0:00:11]} 9. Be3 {[%emt 0:00:24]} Be6 {[%emt 0:00:35]} 10. Qd2 {[%emt 0:00:16]} Nbd7 {[%emt 0:02:23]} 11. a4 {[%emt 0:00:06][%cal Ba2a4,Ba4a5][%mdl 32]} Nb6 {[%emt 0:02:48]} 12. a5 {[%emt 0:01:02]} Nc4 {[%emt 0:00:10]} 13. Bxc4 {[%emt 0:00:04]} Bxc4 {[%emt 0:00:03]} 14. Rfd1 {[%emt 0:00:15]} h6 {[%emt 0:02:54]} 15. f3 {[%emt 0:08:40]} Rc8 {[%emt 0:04:20]} 16. Bb6 {[%emt 0:11:11]} Qe8 {[%emt 0:01:03]} 17. Qe1 {[%emt 0:01:53]} Be6 {[%emt 0:10:27]} 18. Rd2 {[%emt 0:10:29]} Nd7 {[%emt 0:18:09]} 19. Bf2 {[%emt 0:13:54]} f5 {[%emt 0:02:45]} 20. exf5 {[%emt 0:04:02]} Bxf5 {[%emt 0:00:06]} 21. Nd5 {[%emt 0:08:07]} Nf6 {[%emt 0:07:03] ...Nxd5 is the strong threat.} (21... Bxc2 $2 22. Rc1 $18) 22. Nxe7+ {[%emt 0:00:49]} Qxe7 {[%emt 0:00:36]} 23. Nd4 {[%emt 0:00:31][%cal Bb3d4,Bd4c2,Bc2e3][%mdl 32]} Bh7 {[%emt 0:04:44]} 24. c3 {[%emt 0:00:18]} Rce8 {[%emt 0:13:57]} 25. Nc2 {[%emt 0:06:22]} e4 {[%emt 0:03:45]} 26. f4 {[%emt 0:13:17]} e3 $1 {[%emt 0:12:16]} 27. Nxe3 {[%emt 0:00:47]} (27. Bxe3 $2 Bxc2 28. Bf2 Qf7 $19) 27... Ne4 {[%emt 0:00:05][%cal Oe4f2] And now ...Nxf2! would win.} 28. Rd4 {[%emt 0:00:16]} Qf7 {[%emt 0:02:08]} 29. Bg3 {[%emt 0:04:30]} Re6 {[%emt 0:04:38]} 30. f5 {[%emt 0:06:55]} Bxf5 {[%emt 0:00:50]} 31. Nxf5 {[%emt 0:00:08]} Qxf5 {[%emt 0:00:07]} 32. Qf1 {[%emt 0:00:09]} Qg5 {[%emt 0:04:55]} 33. Qd3 {[%emt 0:00:47][%csl LRd6,LRe4]} Nc5 {[%emt 0:02:05]} 34. Qc4 {[%emt 0:00:48]} (34. h4 $1 $11 Qf5 35. Qxf5 Rxf5 36. Re1 (36. Rxd6 Rxd6 37. Bxd6 Nb3 $11) (36. Bxd6 $2 Nb3 $19)) 34... Qe3+ $15 {[%emt 0:01:41]} 35. Kh1 {[%emt 0:00:01]} Kh8 {[%emt 0:00:35][%cal Oc5b3] Strongly threatening ...Nb3!} (35... Kh7 $5 36. Rf1 (36. Bxd6 $2 Qe1+ 37. Rxe1 Rxe1+) (36. Rxd6 $2 Rxd6 37. Bxd6 Ne4 $19) 36... Nd3 $17) 36. Rxd6 {[%emt 0:01:24]} (36. Bxd6 $2 Qe1+ 37. Rxe1 Rxe1+) (36. Rf1 $15 Ref6 (36... Rxf1+ 37. Qxf1 Rf6 38. Rf4 $11) 37. Rg1) 36... Rxd6 $17 {[%emt 0:01:31]} 37. Bxd6 {[%emt 0:00:02] [#]} Ne4 $1 {[%emt 0:00:26]} 38. Bg3 {[%emt 0:00:24][%mdl 8192] [#]} (38. Bxf8 Nf2+ 39. Kg1 Nd1+ 40. Kh1 Qe1+) (38. Qxe4 $17 Qxe4 39. Bxf8) 38... Nxg3+ $2 {[%emt 0:00:47]} ({Better is} 38... Rf4 $1 $19 39. Qc8+ (39. Bxf4 {gets mated.} Nf2+ 40. Kg1 Nh3+ 41. Kh1 Qg1+ 42. Rxg1 Nf2#) 39... Kh7) 39. hxg3 $11 {[%emt 0:00:01] The position is equal.} Qxg3 {[%emt 0:00:27]} 40. Rf1 $36 {[%emt 0:00:00][%mdl 2048] Prevents Rf4. White fights for an advantage.} Re8 {[%emt 0:00:00]} 41. Qf4 {[%emt 0:03:50]} Qd3 {[%emt 0:04:03]} 42. Qf3 {[%emt 0:01:16]} Qb5 {[%emt 0:04:53][%csl LRa5,LRb2]} 43. b4 {[%emt 0:00:20] Weighted Error Value: White=0.25 (precise) /Black=0.20 (precise) .  Loses game:     	White=1     	---        Missed win:     	---       	Black=1      Mistake:       	White=2     	---        Inaccurate:     	White=1     	Black=2      OK:         	White=12    	Black=9      Best:        	White=1     	Black=1      Strong:       	---       	Black=2} 1/2-1/2